{"text_format":"1","workbook":"xlsx","n_sheets":8,"sheets":["Keyboard Keys for Column","Keyboard Keys for Row","Key Sequence","Mouse Button","Ctrl+' Keys","Ctrl+C and Ctrl+V","VBA for a Column","VBA for a Row"],"not_rendered":{"charts":0,"images":0,"macros":1,"external_links":0,"defined_names":0,"comments":0,"pivot_tables":0},"unopened":[],"bounds":{"document_bytes":16777216,"sheet_cells":100000,"rows_first":2000,"rows_last":500,"rows_between":2000,"halvings":0,"cell_chars":16384,"cell_head_chars":4096},"cells_cut":0,"cells_raw":0,"read":"whole","date_system":"1900"}

{"sheet":"Keyboard Keys for Column","index":0,"n_rows":13,"n_cols":4,"rows_kept":13,"cut":false,"hidden":false,"merged":[[1,1,1,3]]}
[]
[null,"Use of Keyboard Keys for a Column"]
[]
[null,"Discount",0.1]
[]
[null,"Product Name","Price","Discount Price"]
[null,"Apple",13,{"$f":"C7*(1-$C$4)","v":11.700000000000001}]
[null,"Grapes",17,{"$f":"C8*(1-$C$4)","v":15.3}]
[null,"Banana",11,9.9]
[null,"Peach",10,9]
[null,"Kiwi",20,18]
[null,"Orange",18,16.2]
[null,"Mango",19,17.100000000000001]

{"sheet":"Keyboard Keys for Row","index":1,"n_rows":30,"n_cols":10,"rows_kept":30,"cut":false,"hidden":false,"merged":[[1,1,1,8]]}
[]
[null,"Use of Keyboard Keys for a Row"]
[]
[null,"Discount",0.1]
[]
[null,"Product Name","Apple","Grapes","Banana","Peach","Kiwi","Orange","Mango"]
[null,"Price",13,17,11,10,20,18,19]
[null,"Discount Price",{"$f":"C7*(1-$C$4)","v":11.700000000000001},{"$f":"D7*(1-$C$4)","v":15.3},9.9,9,18,16.2,17.100000000000001]
[]
[]
[]
[]
[]
[]
[]
[]
[]
[]
[]
[]
[]
[]
[null,null,null,null,null,null,null,"Product Name","Price","Discount Price"]
[null,null,null,null,null,null,null,"Apple",13]
[null,null,null,null,null,null,null,"Grapes",17]
[null,null,null,null,null,null,null,"Banana",11]
[null,null,null,null,null,null,null,"Peach",10]
[null,null,null,null,null,null,null,"Kiwi",20]
[null,null,null,null,null,null,null,"Orange",18]
[null,null,null,null,null,null,null,"Mango",19]

{"sheet":"Key Sequence","index":2,"n_rows":13,"n_cols":4,"rows_kept":13,"cut":false,"hidden":false,"merged":[[1,1,1,3]]}
[]
[null,"Use of Key Sequence"]
[]
[null,"Discount",0.1]
[]
[null,"Product Name","Price","Discount Price"]
[null,"Apple",13,{"$f":"C7*(1-$C$4)","v":11.700000000000001}]
[null,"Grapes",17,{"$f":"C8*(1-$C$4)","v":15.3}]
[null,"Banana",11,9.9]
[null,"Peach",10,9]
[null,"Kiwi",20,18]
[null,"Orange",18,16.2]
[null,"Mango",19,17.100000000000001]

{"sheet":"Mouse Button","index":3,"n_rows":13,"n_cols":4,"rows_kept":13,"cut":false,"hidden":false,"merged":[[1,1,1,3]]}
[]
[null,"Dragging of Mouse button"]
[]
[null,"Discount",0.1]
[]
[null,"Product Name","Price","Discount Price"]
[null,"Apple",13,{"$f":"C7*(1-$C$4)","v":11.700000000000001}]
[null,"Grapes",17,{"$f":"C8*(1-$C$4)","v":15.3}]
[null,"Banana",11,9.9]
[null,"Peach",10,9]
[null,"Kiwi",20,18]
[null,"Orange",18,16.2]
[null,"Mango",19,17.100000000000001]

{"sheet":"Ctrl+' Keys","index":4,"n_rows":11,"n_cols":5,"rows_kept":11,"cut":false,"hidden":false,"merged":[[1,1,1,4]]}
[]
[null,"Utilization of Ctrl+' Keys"]
[]
[null,"Discount",0.1]
[]
[null,"Product Name","Price",null,"Discount Price"]
[null,"Apple",13,null,{"$f":"C7*(1-$C$4)","v":11.700000000000001}]
[null,null,null,null,{"$f":"C7*(1-$C$4)","v":11.700000000000001}]
[null,null,null,null,{"$f":"C7*(1-$C$4)","v":11.700000000000001}]
[null,null,null,null,{"$f":"C7*(1-$C$4)","v":11.700000000000001}]
[null,null,null,null,{"$f":"C7*(1-$C$4)","v":11.700000000000001}]

{"sheet":"Ctrl+C and Ctrl+V","index":5,"n_rows":13,"n_cols":4,"rows_kept":13,"cut":false,"hidden":false,"merged":[[1,1,1,3]]}
[]
[null,"Use of Ctrl+C and Ctrl+V Keys"]
[]
[null,"Discount",0.1]
[]
[null,"Product Name","Price","Discount Price"]
[null,"Apple",13,{"$f":"C7*(1-$C$4)","v":11.700000000000001}]
[null,"Grapes",17,15.3]
[null,"Banana",11,9.9]
[null,"Peach",10,9]
[null,"Kiwi",20,18]
[null,"Orange",18,16.2]
[null,"Mango",19,17.100000000000001]

{"sheet":"VBA for a Column","index":6,"n_rows":13,"n_cols":4,"rows_kept":13,"cut":false,"hidden":false,"merged":[[1,1,1,3]]}
[]
[null,"Use of VBA Code for a Column"]
[]
[null,"Discount",0.1]
[]
[null,"Product Name","Price","Discount Price"]
[null,"Apple",13,{"$f":"C7*(1-$C$4)","v":11.700000000000001}]
[null,"Grapes",17,{"$f":"C8*(1-$C$4)","v":15.3}]
[null,"Banana",11,9.9]
[null,"Peach",10,9]
[null,"Kiwi",20,18]
[null,"Orange",18,16.2]
[null,"Mango",19,17.100000000000001]

{"sheet":"VBA for a Row","index":7,"n_rows":30,"n_cols":10,"rows_kept":30,"cut":false,"hidden":false,"merged":[[1,1,1,8]]}
[]
[null,"Use of VBA Code for a Row"]
[]
[null,"Discount",0.1]
[]
[null,"Product Name","Apple","Grapes","Banana","Peach","Kiwi","Orange","Mango"]
[null,"Price",13,17,11,10,20,18,19]
[null,"Discount Price",{"$f":"C7*(1-$C$4)","v":11.700000000000001},{"$f":"D7*(1-$C$4)","v":15.3},9.9,9,18,16.2,17.100000000000001]
[]
[]
[]
[]
[]
[]
[]
[]
[]
[]
[]
[]
[]
[]
[null,null,null,null,null,null,null,"Product Name","Price","Discount Price"]
[null,null,null,null,null,null,null,"Apple",13]
[null,null,null,null,null,null,null,"Grapes",17]
[null,null,null,null,null,null,null,"Banana",11]
[null,null,null,null,null,null,null,"Peach",10]
[null,null,null,null,null,null,null,"Kiwi",20]
[null,null,null,null,null,null,null,"Orange",18]
[null,null,null,null,null,null,null,"Mango",19]